Workbook

Sheet Costs
A4: Note: The reason for this blank space is that the macro linked from the "Spread Cost" button requires the table row numbers to be
A5: between 10 and 99.
A8: Note: This workbook is based on the Information and methodology used by Association Reserves in its study submitted on September 10, 2019
A10: Item | B10: Estimated Remaining Life (RUL) as of Jan | C10: Estimated Economic Unit Life (UL) | D10: Number of Units* | F10: Cost/Unit as of | H10: Replacement Cost | I10: Annual Cost of Deterioration (Depreciation) | J10: Fully Funded Balance (FFB)
B11: =$M$56 -> 2024 | F11: =$M$56 -> 2024
A12: SITE | L12: Update Procedure:
A13: Concrete Walkways - Repair/Replace | B13: 10 | C13: 10 | D13: 600 | E13: GSF | F13: 12 | G13: GSF | H13: =D13*F13 -> 7200 | I13: =H13/C13 -> 720 | J13: =H13*(C13-B13)/C13 -> 0 | L13: You can update the values in columns
A14: Concrete Walkways - Repair/Replace | B14: 5 | C14: 10 | D14: 4000 | E14: GSF | F14: 12 | G14: GSF | H14: =D14*F14 -> 48000 | I14: 4800 | J14: 24000 | L14: B through G and re-spread the revised
A15: Concrete Parking Lot - Repair | B15: 5 | C15: 15 | D15: 7800 | E15: GSF | F15: 12 | G15: GSF | H15: =D15*F15 -> 93600 | I15: =H15/C15 -> 6240 | J15: =H15*(C15-B15)/C15 -> 62400 | L15: forecasted capital requirements on the
A16: Wood Fence (A) - Replace | B16: 7 | C16: 17 | D16: 4000 | E16: LF | F16: 41 | G16: LF | H16: =D16*F16 -> 164000 | I16: 9647.058824 | J16: 96470.58824 | L16: Cash Flow spreadsheet by clicking the
A17: Wood Fence (B) - Replace | B17: 8 | C17: 17 | D17: 4000 | E17: LF | F17: 41 | G17: LF | H17: =D17*F17 -> 164000 | I17: 9647.058824 | J17: 86823.52941 | L17: "Spread All" button below. You can then
A18: Wood Fence (C) - Replace | B18: 9 | C18: 17 | D18: 4000 | E18: LF | F18: 41 | G18: LF | H18: 164000 | I18: 9647.058824 | J18: 77176.47059 | L18: see the year-by-year effect on the reserve
A19: Wood Fence (D) - Replace | B19: 10 | C19: 17 | D19: 1682 | E19: LF | F19: 41 | G19: LF | H19: 68962 | I19: 4056.588235 | J19: 28396.11765 | L19: fund balance by looking at the graphs below
A20: Brick Columns - Repair | B20: 5 | C20: 10 | D20: 60 | E20: ea | F20: 225.101762 | G20: ea | H20: 13506.10572 | I20: 1350.610572 | J20: 6753.05286 | L20: the table on the Cash Flow sheet. On this
A21: Parking Spaces - Restripe | B21: 5 | C21: 7 | D21: 1 | E21: Lot | F21: 1969.640366 | G21: Lot | H21: 1969.640366 | I21: 281.3771951 | J21: 562.7543903 | L21: sheet you can also change the financial
A22: Car Park & BB Light Fixtures - Replace | B22: 0 | C22: 15 | D22: 5 | E22: ea | F22: 848.72 | G22: ea | H22: =D22*F22 -> 4243.6 | I22: =H22/C22 -> 282.9066667 | J22: =H22*(C22-B22)/C22 -> 4243.6 | L22: parameters in in the green shaded area
A23: Car Park & BB Poles - Refurbish | B23: 0 | C23: 15 | D23: 5 | E23: ea | F23: 848.72 | G23: ea | H23: 4243.6 | I23: 282.9066667 | J23: 4243.6 | L23: at the top of the page.
A24: Monument Signs - Refurbish | B24: 6 | C24: 20 | D24: 4 | E24: ea | F24: 1969.640366 | G24: ea | H24: 7878.561464 | I24: 393.9280732 | J24: 5514.993025
A25: Cul-de-sac Islands (A) - Irrigation | B25: 17 | C25: 20 | D25: 5 | E25: Lot | F25: 2025.915858 | G25: Lot | H25: 10129.57929 | I25: 506.4789645 | J25: 1519.436893
A26: Cul-de-sac Islands (B) - Irrigation | B26: 17 | C26: 20 | D26: 4 | E26: Lot | F26: 2025.915858 | G26: Lot | H26: 8103.663432 | I26: 405.1831716 | J26: 1215.549515
A27: Cul-de-sac Islands (C) - Irrigation | B27: 15 | C27: 20 | D27: 4 | E27: Lot | F27: 2025.915858 | G27: Lot | H27: 8103.663432 | I27: 405.1831716 | J27: 2025.915858
A28: Sub Total | H28: =SUM(H13:H27) -> 767940.4137 | I28: =SUM(I13:I27) -> 48666.33919 | J28: =SUM(J13:J27) -> 401345.6084 | L28: To calculate the monthly reserve contribution
A29: CLUBHOUSE | L29: which gives 100% funding at the start of the
A30: Surveillance System - Replace | B30: 8 | C30: 10 | D30: 1 | E30: Lot | F30: 26522.5 | G30: Lot | H30: =D30*F30 -> 26522.5 | I30: =H30/C30 -> 2652.25 | J30: =H30*(C30-B30)/C30 -> 5304.5 | L30: 30th year, click the "Calc Mnthly Reserve"
A31: Interior Lights - Replace | B31: 13 | C31: 15 | D31: 1 | E31: Lot | F31: 3939.280835 | G31: Lot | H31: 3939.280835 | I31: 262.6187223 | J31: 525.2374447 | L31: button below. The macro re-populates the whole
A32: Hallway Flooring - Replace | B32: 13 | C32: 15 | D32: 40 | E32: GSY | F32: 86.198125 | G32: GSY | H32: 3447.925 | I32: 229.8616667 | J32: 459.7233333 | L32: FFB spread sheet so takes a while to process
A33: Indoor Carpet - Replace | B33: 8 | C33: 10 | D33: 180 | E33: GSY | F33: 39.392762 | G33: GSY | H33: 7090.69716 | I33: 709.069716 | J33: 1418.139432 | L33: the 30 years. The required monthly contribution
A34: Utility Doors - Partial Replace | B34: 1 | C34: 10 | D34: 15 | E34: ea | F34: 225.101762 | G34: ea | H34: 3376.52643 | I34: 337.652643 | J34: 3038.873787 | L34: will be shown in the yellow box below the button.
A35: Pool Gates - Repair/Replace | B35: 4 | C35: 15 | D35: 2 | E35: ea | F35: 844.131659 | G35: ea | H35: 1688.263318 | I35: 112.5508879 | J35: 1238.059767
A36: Chairs + Chair Trolleys (2021) | B36: 13 | C36: 15 | D36: 1 | E36: Lot | F36: 1591.35 | G36: ea | H36: =D36*F36 -> 1591.35 | I36: =H36/C36 -> 106.09 | J36: =H36*(C36-B36)/C36 -> 212.18
A37: Tables | B37: 5 | C37: 15 | D37: 1 | E37: Lot | F37: 2121.8 | G37: Lot | H37: 2121.8 | I37: 141.4533333 | J37: 1414.533333
A38: Kitchen - Refurbish | B38: 18 | C38: 20 | D38: 1 | E38: Lot | F38: 9004.07048 | G38: Lot | H38: 9004.07048 | I38: 450.203524 | J38: 900.407048
A39: Restrooms - Refurbish | B39: 7 | C39: 20 | D39: 2 | E39: ea | F39: 7315.807265 | G39: Lot | H39: 14631.61453 | I39: 731.5807265 | J39: 9510.549445 | M39: ='Cash Flow'!B79/12 -> 9538.58402 | N39: Per Month
A40: Interior Surfaces - Repaint | B40: 1 | C40: 10 | D40: 4100 | E40: GSF | F40: 1.2 | G40: GSF | H40: 4920 | I40: 492 | J40: 4428
A41: Building Exteriors - Paint/Repair | B41: 1 | C41: 10 | D41: 5350 | E41: GSF | F41: 1.575797 | G41: GSF | H41: 8430.51395 | I41: 843.051395 | J41: 7587.462555 | L41: To add or delete a component row click below:
A42: Windows - Replace | B42: 36 | C42: 40 | D42: 12 | E42: ea | F42: 562.754405 | G42: ea | H42: 6753.05286 | I42: 168.8263215 | J42: 675.305286
A43: Fiber Cement Siding - Replace | B43: 16 | C43: 40 | D43: 3350 | E43: GSF | F43: 8.452592 | G43: GSF | H43: 28316.1832 | I43: 707.90458 | J43: 16989.70992
A44: Asphalt Shingle Roof - Replace | B44: 12 | C44: 25 | D44: 4450 | E44: GSF | F44: 4.502027 | G44: GSF | H44: 20034.02015 | I44: 801.360806 | J44: 10417.69048
A45: Gutters/Downspouts - Replace | B45: 12 | C45: 25 | D45: 164 | E45: LF | F45: 24.018364 | G45: LF | H45: 3939.011696 | I45: 157.5604678 | J45: 2048.286082
A46: Sub Total | H46: =SUM(H30:H45) -> 145806.8096 | I46: =SUM(I30:I45) -> 8904.03479 | J46: =SUM(J30:J45) -> 66168.65791 | L46: To set up this spreadsheet for the next year :
A47: POOL/PARK/TENNIS | L47: click on the button below and follow the prompts
A48: Shade Awnings - Replace Screens | B48: 8 | C48: 10 | D48: 1140 | E48: GSF | F48: 4.45578 | G48: GSF | H48: =D48*F48 -> 5079.5892 | I48: =H48/C48 -> 507.95892 | J48: =H48*(C48-B48)/C48 -> 1015.91784
A49: Play Equipment - Replace | B49: 4 | C49: 18 | D49: 1 | E49: Lot | F49: 56275.4405 | G49: Lot | H49: 56275.4405 | I49: 3126.413361 | J49: 43769.78706
A50: Playground Awnings - Replace Screens | B50: 7 | C50: 10 | D50: =(27*33+26*37) -> 1853 | E50: GSF | F50: 7.360792 | G50: GSF | H50: =D50*F50 -> 13639.54758 | I50: =H50/C50 -> 1363.954758 | J50: =H50*(C50-B50)/C50 -> 4091.864273
A51: Park Furniture - Replace (13 items) | B51: 10 | C51: 10 | D51: 1 | E51: Lot | F51: 5000 | G51: Lot | H51: 5000 | I51: 500 | J51: 0
A52: Drinking Fountains - Replace | B52: 3 | C52: 20 | D52: 1 | E52: Lot | F52: 2251.01762 | G52: Lot | H52: 2251.01762 | I52: 112.550881 | J52: 1913.364977 | L52: You can also perform the update manually
A53: Wood Fence - Replace | B53: 1 | C53: 20 | D53: 30 | E53: LF | F53: 37.513218 | G53: LF | H53: 1125.39654 | I53: 56.269827 | J53: 1069.126713 | L53: by entering the year and prior year reserve
A54: Pool Perimeter Fence - Powder Coat | B54: 3 | C54: 15 | D54: 560 | E54: LF | F54: 38.188486 | G54: LF | H54: 21385.55216 | I54: 1425.703477 | J54: 17108.44173 | L54: total in the green shaded cells below:
A55: Pool Deck - Repair/Replace | B55: 5 | C55: 15 | D55: 8120 | E55: GSF | F55: 12 | G55: GSF | H55: 97440 | I55: 6496 | J55: 64960
A56: Pool - Replaster | B56: 7 | C56: 10 | D56: 1 | E56: Lot | F56: 51529.72714 | G56: Lot | H56: 51529.72714 | I56: 5152.972714 | J56: 15458.91814 | L56: YEAR | M56: 2024
A57: Kiddie Pool - Replaster | B57: 5 | C57: 10 | D57: 1 | E57: Lot | F57: 3714.179073 | G57: Lot | H57: 3714.179073 | I57: 371.4179073 | J57: 1857.089537
A58: Pool Filter (2016) - Replace | B58: 7 | C58: 15 | D58: 1 | E58: ea | F58: 1294.335183 | G58: ea | H58: 1294.335183 | I58: 86.2890122 | J58: 690.3120976 | L58: then adjust figures in columns B, C and F and
A59: Pool Filters (Old) - Replace | B59: 1 | C59: 15 | D59: 3 | E59: ea | F59: 1688.263215 | G59: ea | H59: 5064.789645 | I59: 337.652643 | J59: 4727.137002 | L59: enter the prior year's Dec 31 Reserve Total:
A60: Sand Filters - Replace Media | B60: 1 | C60: 4 | D60: 4 | E60: ea | F60: 506.478913 | G60: ea | H60: 2025.915652 | I60: 506.478913 | J60: 1519.436739
A61: Pool Pumps - Replace | B61: 2 | C61: 5 | D61: 2 | E61: ea | F61: 1688.263215 | G61: ea | H61: 3376.52643 | I61: 675.305286 | J61: 2025.915858 | L61: 2019-12-31 | M61: 726055 | N61: =M56-1 -> 2023
A62: Diving Board - Replace | B62: 12 | C62: 15 | D62: 1 | E62: ea | F62: 13659.0875 | G62: ea | H62: =D62*F62 -> 13659.0875 | I62: =H62/C62 -> 910.6058333 | J62: =H62*(C62-B62)/C62 -> 2731.8175
A63: Lifeguard Stands - Replace | B63: 15 | C63: 15 | D63: 2 | E63: ea | F63: 6000 | G63: ea | H63: 12000 | I63: 800 | J63: 0
A64: Swim Lane Dividers - Replace | B64: 1 | C64: 15 | D64: 1 | E64: Lot | F64: 2532.394771 | G64: Lot | H64: 2532.394771 | I64: 168.8263181 | J64: 2363.568453
A65: Pool Coping - Replace | B65: 7 | C65: 20 | D65: 350 | E65: LF | F65: 22.589033 | G65: LF | H65: 7906.16155 | I65: 395.3080775 | J65: 5139.005007
A66: Pool Perimeter Fence - Replace | B66: 13 | C66: 30 | D66: 560 | E66: LF | F66: 56.275492 | G66: LF | H66: 31514.27552 | I66: 1050.475851 | J66: 17858.08946
A67: Pool Furniture - Replace (66 items) | B67: 2 | C67: 8 | D67: 1 | E67: Lot | F67: 18008.14096 | G67: Lot | H67: 18008.14096 | I67: 2251.01762 | J67: 13506.10572
A68: Tennis Courts - Resurface (26,000 GSF) | B68: 5 | C68: 7 | D68: 1 | E68: Lot | F68: 25461.6 | G68: Lot | H68: 25461.6 | I68: 3637.371429 | J68: 7274.742857
A69: Tennis Court Light Fixtures - Replace | B69: 0 | C69: 15 | D69: 24 | E69: Lot | F69: 2408.243 | G69: Lot | H69: 57797.832 | I69: 3853.1888 | J69: 57797.832
A70: Tennis Court Light Poles - Refurbish | B70: 0 | C70: 15 | D70: 12 | E70: ea | F70: 848.72 | G70: ea | H70: 10184.64 | I70: 678.976 | J70: 10184.64
A71: Tennis Chain Link Fence - Replace | B71: 15 | C71: 30 | D71: 990 | E71: LF | F71: 31.26668 | G71: LF | H71: 30954.0132 | I71: 1031.80044 | J71: 15477.0066
A72: Basketball Court - Replace | B72: 10 | C72: 40 | D72: 3200 | E72: GSF | F72: 12 | G72: GSF | H72: 38400 | I72: 960 | J72: 28800
A73: Basketball Hoop - Replace | B73: 10 | C73: 10 | D73: 1 | E73: ea | F73: 1200 | G73: ea | H73: 1200 | I73: 120 | J73: 0
A74: Sub Total | H74: =SUM(H48:H73) -> 518820.1622 | I74: =SUM(I48:I73) -> 36576.53807 | J74: =SUM(J48:J73) -> 321340.1196
A75: HVAC
A76: HVAC Unit (A) 4Ton- Replace | B76: 11 | C76: 15 | D76: 1 | E76: ea | F76: 7315.807265 | G76: ea | H76: =D76*F76 -> 7315.807265 | I76: =H76/C76 -> 487.7204843 | J76: =H76*(C76-B76)/C76 -> 1950.881937
A77: HVAC Unit (B) 4Ton- Replace | B77: 11 | C77: 15 | D77: 1 | E77: ea | F77: 7315.807265 | G77: ea | H77: 7315.807265 | I77: =H77/C77 -> 487.7204843 | J77: =H77*(C77-B77)/C77 -> 1950.881937
A78: HVAC Unit (C) 3Ton- Replace | B78: 8 | C78: 15 | D78: 1 | E78: ea | F78: 6190.298455 | G78: ea | H78: 5500 | I78: =H78/C78 -> 366.6666667 | J78: =H78*(C78-B78)/C78 -> 2566.666667
A79: Sub Total | H79: =SUM(H76:H78) -> 20131.61453 | I79: =SUM(I76:I78) -> 1342.107635 | J79: =SUM(J76:J78) -> 6468.430541
A81: Grand Total | B81: BOT | H81: =SUM(H13:H79)/2 -> 1452699 | I81: =SUM(I13:I79)/2 -> 95489.01968 | J81: 795322.8164
I83: Total Required on Deposit: | J83: =J81 -> 795322.8164
I84: Prior year projected December 31 Reserve Total | J84: =M61 -> 726055
I85: Percent Funded | J85: =J84/J83 -> 0.9129060364

Sheet Cash Flow
A1: $B$78 | Q1: RESERVE STUDY - | R1: =Costs!$M$56 -> 2024
A2: PARAMETERS | O2: 30 YEAR CASH FLOW
A3: Number of homes | B3: 763 | D3: Notes:
A4: Starting reserve fund balance | B4: =Costs!M61 -> 726055 | D4: Values in shaded area to the left | H4: To recalculate to monthly contribution required
A5: Reserve fund earnings rate | B5: 0.03 | D5: can be adjusted, and the effect | H5: for full funding following a change to any of the | N5: Link to
A6: Monthly per resident reserve fee | B6: 12.50142073 | D6: on the 30 year cash flow observed | H6: parameters in the green shaded area, cilck below: | N6: US Inflation Forecast
A7: Reserve fee escalation rate | B7: 0.01788 | D7: on the graph below.
A8: Inflation rate | B8: 0.03
A9: 15
A10: =MID(A1,2,1) -> B
A11: =SUBSTITUTE(A1,"$B$","A") -> A78
A12: =RIGHT(A11,2) -> 78 | B12: =Costs!$M$56 -> 2024 | C12: =B12+1 -> 2025 | D12: =C12+1 -> 2026 | E12: 2027 | F12: 2028 | G12: 2029 | H12: 2030 | I12: 2031 | J12: 2032 | K12: 2033 | L12: 2034 | M12: 2035 | N12: 2036 | O12: 2037 | P12: 2038 | Q12: 2039 | R12: 2040 | S12: 2041 | T12: 2042 | U12: 2043 | V12: =U12+1 -> 2044 | W12: 2045 | X12: 2046 | Y12: 2047 | Z12: 2048 | AA12: 2049 | AB12: 2050 | AC12: 2051 | AD12: 2052 | AE12: 2053
B13: 0 | C13: 1 | D13: 2 | E13: 3 | F13: 4 | G13: 5 | H13: 6 | I13: 7 | J13: 8 | K13: 9 | L13: 10 | M13: 11 | N13: 12 | O13: 13 | P13: 14 | Q13: 15 | R13: 16 | S13: 17 | T13: 18 | U13: 19 | V13: 20 | W13: 21 | X13: 22 | Y13: 23 | Z13: 24 | AA13: 25 | AB13: 26 | AC13: 27 | AD13: 28 | AE13: 29
A14: =Costs!A13 -> Concrete Walkways - Repair/Replace | L14: =Costs!H13 -> 7200 | V14: =Costs!H13 -> 7200
A15: =Costs!A14 -> Concrete Walkways - Repair/Replace | G15: =Costs!H14 -> 48000 | Q15: =Costs!H14 -> 48000 | AA15: =Costs!H14 -> 48000
A16: =Costs!A15 -> Concrete Parking Lot - Repair | G16: =Costs!H15 -> 93600 | V16: =Costs!H15 -> 93600
A17: =Costs!A16 -> Wood Fence (A) - Replace | I17: =Costs!H16 -> 164000 | Z17: =Costs!H16 -> 164000
A18: =Costs!A17 -> Wood Fence (B) - Replace | J18: =Costs!H17 -> 164000 | AA18: =Costs!H17 -> 164000
A19: =Costs!A18 -> Wood Fence (C) - Replace | K19: =Costs!H18 -> 164000 | AB19: =Costs!H18 -> 164000
A20: =Costs!A19 -> Wood Fence (D) - Replace | L20: =Costs!H19 -> 68962 | AC20: =Costs!H19 -> 68962
A21: =Costs!A20 -> Brick Columns - Repair | G21: =Costs!H20 -> 13506.10572 | Q21: =Costs!H20 -> 13506.10572 | AA21: =Costs!H20 -> 13506.10572
A22: =Costs!A21 -> Parking Spaces - Restripe | G22: =Costs!H21 -> 1969.640366 | N22: =Costs!H21 -> 1969.640366 | U22: =Costs!H21 -> 1969.640366 | AB22: =Costs!H21 -> 1969.640366
A23: =Costs!A22 -> Car Park & BB Light Fixtures - Replace | B23: =Costs!H22 -> 4243.6 | Q23: =Costs!H22 -> 4243.6
A24: =Costs!A23 -> Car Park & BB Poles - Refurbish | B24: =Costs!H23 -> 4243.6 | Q24: =Costs!H23 -> 4243.6
A25: =Costs!A24 -> Monument Signs - Refurbish | H25: =Costs!H24 -> 7878.561464 | AB25: =Costs!H24 -> 7878.561464
A26: =Costs!A25 -> Cul-de-sac Islands (A) - Irrigation | S26: =Costs!H25 -> 10129.57929
A27: =Costs!A26 -> Cul-de-sac Islands (B) - Irrigation | S27: =Costs!H26 -> 8103.663432
A28: =Costs!A27 -> Cul-de-sac Islands (C) - Irrigation | Q28: =Costs!H27 -> 8103.663432
A29: =Costs!A30 -> Surveillance System - Replace | J29: =Costs!H30 -> 26522.5 | T29: =Costs!H30 -> 26522.5 | AD29: =Costs!H30 -> 26522.5
A30: =Costs!A31 -> Interior Lights - Replace | O30: =Costs!H31 -> 3939.280835 | AD30: =Costs!H31 -> 3939.280835
A31: =Costs!A32 -> Hallway Flooring - Replace | O31: =Costs!H32 -> 3447.925 | AD31: =Costs!H32 -> 3447.925
A32: =Costs!A33 -> Indoor Carpet - Replace | J32: =Costs!H33 -> 7090.69716 | T32: =Costs!H33 -> 7090.69716 | AD32: =Costs!H33 -> 7090.69716
A33: =Costs!A34 -> Utility Doors - Partial Replace | C33: =Costs!H34 -> 3376.52643 | M33: =Costs!H34 -> 3376.52643 | W33: =Costs!H34 -> 3376.52643
A34: =Costs!A35 -> Pool Gates - Repair/Replace | F34: =Costs!H35 -> 1688.263318 | U34: =Costs!H35 -> 1688.263318
A35: =Costs!A36 -> Chairs + Chair Trolleys (2021) | O35: =Costs!H36 -> 1591.35 | AD35: =Costs!H36 -> 1591.35
A36: =Costs!A37 -> Tables | G36: =Costs!H37 -> 2121.8 | V36: =Costs!H37 -> 2121.8
A37: =Costs!A38 -> Kitchen - Refurbish | T37: =Costs!H38 -> 9004.07048
A38: =Costs!A39 -> Restrooms - Refurbish | I38: =Costs!H39 -> 14631.61453 | AC38: =Costs!H39 -> 14631.61453
A39: =Costs!A40 -> Interior Surfaces - Repaint | C39: =Costs!H40 -> 4920 | M39: =Costs!H40 -> 4920 | W39: =Costs!H40 -> 4920
A40: =Costs!A41 -> Building Exteriors - Paint/Repair | C40: =Costs!H41 -> 8430.51395 | M40: =Costs!H41 -> 8430.51395 | W40: =Costs!H41 -> 8430.51395
A41: =Costs!A42 -> Windows - Replace
A42: =Costs!A43 -> Fiber Cement Siding - Replace | R42: =Costs!H43 -> 28316.1832
A43: =Costs!A44 -> Asphalt Shingle Roof - Replace | N43: =Costs!H44 -> 20034.02015
A44: =Costs!A45 -> Gutters/Downspouts - Replace | N44: =Costs!H45 -> 3939.011696
A45: =Costs!A48 -> Shade Awnings - Replace Screens | J45: =Costs!H48 -> 5079.5892 | T45: =Costs!H48 -> 5079.5892 | AD45: =Costs!H48 -> 5079.5892
A46: =Costs!A49 -> Play Equipment - Replace | F46: =Costs!H49 -> 56275.4405 | X46: =Costs!H49 -> 56275.4405
A47: =Costs!A50 -> Playground Awnings - Replace Screens | I47: =Costs!H50 -> 13639.54758 | S47: =Costs!H50 -> 13639.54758 | AC47: =Costs!H50 -> 13639.54758
A48: =Costs!A51 -> Park Furniture - Replace (13 items) | L48: =Costs!H51 -> 5000 | V48: =Costs!H51 -> 5000
A49: =Costs!A52 -> Drinking Fountains - Replace | E49: =Costs!H52 -> 2251.01762 | Y49: =Costs!H52 -> 2251.01762
A50: =Costs!A53 -> Wood Fence - Replace | C50: =Costs!H53 -> 1125.39654 | W50: =Costs!H53 -> 1125.39654
A51: =Costs!A54 -> Pool Perimeter Fence - Powder Coat | E51: =Costs!H54 -> 21385.55216 | T51: =Costs!H54 -> 21385.55216
A52: =Costs!A55 -> Pool Deck - Repair/Replace | G52: =Costs!H55 -> 97440 | V52: =Costs!H55 -> 97440
A53: =Costs!A56 -> Pool - Replaster | I53: =Costs!H56 -> 51529.72714 | S53: =Costs!H56 -> 51529.72714 | AC53: =Costs!H56 -> 51529.72714
A54: =Costs!A57 -> Kiddie Pool - Replaster | G54: =Costs!H57 -> 3714.179073 | Q54: =Costs!H57 -> 3714.179073 | AA54: =Costs!H57 -> 3714.179073
A55: =Costs!A58 -> Pool Filter (2016) - Replace | I55: =Costs!H58 -> 1294.335183 | X55: =Costs!H58 -> 1294.335183
A56: =Costs!A59 -> Pool Filters (Old) - Replace | C56: =Costs!H59 -> 5064.789645 | R56: =Costs!H59 -> 5064.789645
A57: =Costs!A60 -> Sand Filters - Replace Media | C57: =Costs!H60 -> 2025.915652 | G57: =Costs!H60 -> 2025.915652 | K57: =Costs!H60 -> 2025.915652 | O57: =Costs!H60 -> 2025.915652 | S57: =Costs!H60 -> 2025.915652 | W57: =Costs!H60 -> 2025.915652 | AA57: =Costs!H60 -> 2025.915652 | AE57: =Costs!H60 -> 2025.915652
A58: =Costs!A61 -> Pool Pumps - Replace | D58: =Costs!H61 -> 3376.52643 | I58: =Costs!H61 -> 3376.52643 | N58: =Costs!H61 -> 3376.52643 | S58: =Costs!H61 -> 3376.52643 | X58: =Costs!H61 -> 3376.52643 | AC58: =Costs!H61 -> 3376.52643
A59: =Costs!A62 -> Diving Board - Replace | N59: =Costs!H62 -> 13659.0875 | AC59: =Costs!H62 -> 13659.0875
A60: =Costs!A63 -> Lifeguard Stands - Replace | Q60: =Costs!H63 -> 12000
A61: =Costs!A64 -> Swim Lane Dividers - Replace | C61: =Costs!H64 -> 2532.394771 | R61: =Costs!H64 -> 2532.394771
A62: =Costs!A65 -> Pool Coping - Replace | I62: =Costs!H65 -> 7906.16155 | AC62: =Costs!H65 -> 7906.16155
A63: =Costs!A66 -> Pool Perimeter Fence - Replace | O63: =Costs!H66 -> 31514.27552
A64: =Costs!A67 -> Pool Furniture - Replace (66 items) | D64: =Costs!H67 -> 18008.14096 | L64: =Costs!H67 -> 18008.14096 | T64: =Costs!H67 -> 18008.14096 | AB64: =Costs!H67 -> 18008.14096
A65: =Costs!A68 -> Tennis Courts - Resurface (26,000 GSF) | G65: =Costs!H68 -> 25461.6 | N65: =Costs!H68 -> 25461.6 | U65: =Costs!H68 -> 25461.6 | AB65: =Costs!H68 -> 25461.6
A66: =Costs!A69 -> Tennis Court Light Fixtures - Replace | B66: =Costs!H69 -> 57797.832 | Q66: =Costs!H69 -> 57797.832
A67: =Costs!A70 -> Tennis Court Light Poles - Refurbish | B67: =Costs!H70 -> 10184.64 | Q67: =Costs!H70 -> 10184.64
A68: =Costs!A71 -> Tennis Chain Link Fence - Replace | Q68: =Costs!H71 -> 30954.0132
A69: =Costs!A72 -> Basketball Court - Replace | L69: =Costs!H72 -> 38400
A70: =Costs!A73 -> Basketball Hoop - Replace | L70: =Costs!H73 -> 1200 | V70: =Costs!H73 -> 1200
A71: =Costs!A76 -> HVAC Unit (A) 4Ton- Replace | M71: =Costs!H76 -> 7315.807265 | AB71: =Costs!H76 -> 7315.807265
A72: =Costs!A77 -> HVAC Unit (B) 4Ton- Replace | M72: =Costs!H77 -> 7315.807265 | AB72: =Costs!H77 -> 7315.807265
A73: =Costs!A78 -> HVAC Unit (C) 3Ton- Replace | J73: =Costs!H78 -> 5500 | Y73: =Costs!H78 -> 5500
A74: Total Cost | B74: =SUM(B14:B73) -> 76469.672 | C74: 27475.53699 | D74: 21384.66739 | E74: 23636.56978 | F74: 57963.70382 | G74: 287839.2408 | H74: 7878.561464 | I74: 256377.9124 | J74: 208192.7864 | K74: 166025.9157 | L74: 138770.141 | M74: 31358.65491 | N74: 68439.88614 | O74: 42518.74701 | P74: 0 | Q74: 192747.6334 | R74: 35913.36762 | S74: 88804.95952 | T74: 87090.54996 | U74: 29119.50368 | V74: 206561.8 | W74: 19878.35257 | X74: 60946.30211 | Y74: 7751.01762 | Z74: 164000 | AA74: 231246.2004 | AB74: 231949.5573 | AC74: 173704.6647 | AD74: 47671.34219 | AE74: 2025.915652
A75: Total Cost Adjusted for Inflation | B75: =B74*(1+$B$8)^B13 -> 76469.672 | C75: 28299.8031 | D75: 22686.99363 | E75: 25828.31799 | F75: 65238.65931 | G75: 333684.5694 | H75: 9407.414409 | I75: 315312.4941 | J75: 263732.3929 | K75: 216626.1626 | L75: 186495.4654 | M75: 43407.71227 | N75: 97578.91276 | O75: 62440.21343 | P75: 0 | Q75: 300294.5325 | R75: 57630.41226 | S75: 146781.0671 | T75: 148265.8316 | U75: 51061.22597 | V75: 373073.5876 | W75: 36979.59138 | X75: 116779.4172 | Y75: 15297.30382 | Z75: 333378.2335 | AA75: 484178.1908 | AB75: 500220.3898 | AC75: 385848.262 | AD75: 109068.5831 | AE75: 4774.202944
A78: Start of year reserve fund Balance | B78: =B4 -> 726055 | C78: =B82 -> 786709.7957 | D78: =C82 -> 900189.6235 | E78: 1024934.091 | F78: 1152436.369 | G78: 1245998.236 | H78: 1072107.802 | I78: 1224407.312 | J78: 1073092.706 | K78: 971892.3951 | L78: 917830.8001 | M78: 895150.802 | N78: 1019525.38 | O78: 1095212.829 | P78: 1211445.553 | Q78: 1397219.442 | R78: 1286445.224 | S78: 1421366.673 | T78: 1472644.311 | U78: 1526782.473 | V78: =U82 -> 1684108.611 | W78: 1522219.984 | X78: 1699574.218 | Y78: 1804323.935 | Z78: 2018353.57 | AA78: 1919098.09 | AB78: 1666909.45 | AC78: 1394000.037 | AD78: 1232195.131 | AE78: 1349810.417
A79: Annual Fee Revenue | B79: =$B$3*$B$6*12 -> 114463.0082 | C79: =B79*(1+$B$7) -> 116509.6068 | D79: 118592.7986 | E79: 120713.2378 | F79: 122871.5905 | G79: 125068.5346 | H79: 127304.76 | I79: 129580.9691 | J79: 131897.8768 | K79: 134256.2108 | L79: 136656.7119 | M79: =L79*(1+$B$7) -> 139100.1339 | N79: =M79*(1+$B$7) -> 141587.2443 | O79: =N79*(1+$B$7) -> 144118.8242 | P79: =O79*(1+$B$7) -> 146695.6688 | Q79: =P79*(1+$B$7) -> 149318.5874 | R79: =Q79*(1+$B$7) -> 151988.4037 | S79: =R79*(1+$B$7) -> 154705.9564 | T79: =S79*(1+$B$7) -> 157472.0989 | U79: =T79*(1+$B$7) -> 160287.7 | V79: =U79*(1+$B$7) -> 163153.6441 | W79: =V79*(1+$B$7) -> 166070.8312 | X79: =W79*(1+$B$7) -> 169040.1777 | Y79: =X79*(1+$B$7) -> 172062.6161 | Z79: =Y79*(1+$B$7) -> 175139.0956 | AA79: =Z79*(1+$B$7) -> 178270.5827 | AB79: =AA79*(1+$B$7) -> 181458.0607 | AC79: =AB79*(1+$B$7) -> 184702.5308 | AD79: =AC79*(1+$B$7) -> 188005.0121 | AE79: =AD79*(1+$B$7) -> 191366.5417
A80: Investment earnings | B80: =(B78+(B78+B79-B81))/2*((1+$B$5/12)^12-1) -> 22661.45944 | C80: 25270.02404 | D80: 28838.66222 | E80: 32617.35896 | F80: 35928.93534 | G80: 34725.6005 | H80: 34402.16499 | I80: 34416.91902 | J80: 30634.20503 | K80: 28308.35676 | L80: 27158.75538 | M80: 28682.15651 | N80: 31679.11779 | O80: 34554.11279 | P80: 39078.22031 | Q80: 40201.72743 | R80: 40563.45682 | S80: 43352.74902 | T80: 44931.89463 | U80: 48099.66378 | V80: 48031.31696 | W80: 48262.99424 | X80: 52488.95671 | Y80: 57264.32257 | Z80: 58983.65783 | AA80: 53718.96851 | AB80: 45852.91539 | AC80: 39340.82511 | AD80: 38678.85751 | AE80: 43893.46775
A81: Capital expenditures | B81: =B75 -> 76469.672 | C81: =C75 -> 28299.8031 | D81: =D75 -> 22686.99363 | E81: 25828.31799 | F81: 65238.65931 | G81: 333684.5694 | H81: 9407.414409 | I81: 315312.4941 | J81: 263732.3929 | K81: 216626.1626 | L81: 186495.4654 | M81: 43407.71227 | N81: 97578.91276 | O81: 62440.21343 | P81: 0 | Q81: 300294.5325 | R81: 57630.41226 | S81: 146781.0671 | T81: 148265.8316 | U81: 51061.22597 | V81: =V75 -> 373073.5876 | W81: 36979.59138 | X81: 116779.4172 | Y81: 15297.30382 | Z81: 333378.2335 | AA81: 484178.1908 | AB81: 500220.3898 | AC81: 385848.262 | AD81: 109068.5831 | AE81: 4774.202944
A82: End of year reserve fund Balance | B82: =B78+B79+B80-B81 -> 786709.7957 | C82: =C78+C79+C80-C81 -> 900189.6235 | D82: 1024934.091 | E82: 1152436.369 | F82: 1245998.236 | G82: 1072107.802 | H82: 1224407.312 | I82: 1073092.706 | J82: 971892.3951 | K82: 917830.8001 | L82: 895150.802 | M82: 1019525.38 | N82: 1095212.829 | O82: 1211445.553 | P82: 1397219.442 | Q82: 1286445.224 | R82: 1421366.673 | S82: 1472644.311 | T82: 1526782.473 | U82: 1684108.611 | V82: =V78+V79+V80-V81 -> 1522219.984 | W82: 1699574.218 | X82: 1804323.935 | Y82: 2018353.57 | Z82: 1919098.09 | AA82: 1666909.45 | AB82: 1394000.037 | AC82: 1232195.131 | AD82: 1349810.417 | AE82: 1580296.224

Sheet FFB Spread
A1: $B$78 | O1: RESERVE STUDY - | R1: =Costs!$M$56 -> 2024
O2: 30 YEAR ANNUAL FFBs
AE8: =$AE$75 -> 1349810.417
A9: 15 | AE9: 1349810.417
A10: =MID(A1,2,1) -> B
A11: =SUBSTITUTE(A1,"$B$","A") -> A78
A12: =RIGHT(A11,2) -> 78 | B12: =Costs!$M$56 -> 2024 | C12: =B12+1 -> 2025 | D12: 2026 | E12: 2027 | F12: 2028 | G12: 2029 | H12: 2030 | I12: 2031 | J12: 2032 | K12: 2033 | L12: 2034 | M12: 2035 | N12: 2036 | O12: 2037 | P12: 2038 | Q12: 2039 | R12: 2040 | S12: 2041 | T12: 2042 | U12: 2043 | V12: 2044 | W12: 2045 | X12: 2046 | Y12: 2047 | Z12: 2048 | AA12: 2049 | AB12: 2050 | AC12: 2051 | AD12: 2052 | AE12: 2053
A13: 2200 | B13: 0 | C13: 1 | D13: 2 | E13: 3 | F13: 4 | G13: 5 | H13: 6 | I13: 7 | J13: 8 | K13: 9 | L13: 10 | M13: 11 | N13: 12 | O13: 13 | P13: 14 | Q13: 15 | R13: 16 | S13: 17 | T13: 18 | U13: 19 | V13: 20 | W13: 21 | X13: 22 | Y13: 23 | Z13: 24 | AA13: 25 | AB13: 26 | AC13: 27 | AD13: 28 | AE13: 29
A14: =Costs!A13 -> Concrete Walkways - Repair/Replace | B14: 0 | C14: 720 | D14: 1440 | E14: 2160 | F14: 2880 | G14: 3600 | H14: 4320 | I14: 5040 | J14: 5760 | K14: 6480 | L14: 7200 | M14: 720 | N14: 1440 | O14: 2160 | P14: 2880 | Q14: 3600 | R14: 4320 | S14: 5040 | T14: 5760 | U14: 6480 | V14: 7200 | W14: 720 | X14: 1440 | Y14: 2160 | Z14: 2880 | AA14: 3600 | AB14: 4320 | AC14: 5040 | AD14: 5760 | AE14: 6480
A15: =Costs!A14 -> Concrete Walkways - Repair/Replace | B15: 24000 | C15: 28800 | D15: 33600 | E15: 38400 | F15: 43200 | G15: 48000 | H15: 4800 | I15: 9600 | J15: 14400 | K15: 19200 | L15: 24000 | M15: 28800 | N15: 33600 | O15: 38400 | P15: 43200 | Q15: 48000 | R15: 4800 | S15: 9600 | T15: 14400 | U15: 19200 | V15: 24000 | W15: 28800 | X15: 33600 | Y15: 38400 | Z15: 43200 | AA15: 48000 | AB15: 4800 | AC15: 9600 | AD15: 14400 | AE15: 19200
A16: =Costs!A15 -> Concrete Parking Lot - Repair | B16: 62400 | C16: 68640 | D16: 74880 | E16: 81120 | F16: 87360 | G16: 93600 | H16: 6240 | I16: 12480 | J16: 18720 | K16: 24960 | L16: 31200 | M16: 37440 | N16: 43680 | O16: 49920 | P16: 56160 | Q16: 62400 | R16: 68640 | S16: 74880 | T16: 81120 | U16: 87360 | V16: 93600 | W16: 6240 | X16: 12480 | Y16: 18720 | Z16: 24960 | AA16: 31200 | AB16: 37440 | AC16: 43680 | AD16: 49920 | AE16: 56160
A17: =Costs!A16 -> Wood Fence (A) - Replace | B17: 96470.58824 | C17: 106117.6471 | D17: 115764.7059 | E17: 125411.7647 | F17: 135058.8235 | G17: 144705.8824 | H17: 154352.9412 | I17: 164000 | J17: 9647.058824 | K17: 19294.11765 | L17: 28941.17647 | M17: 38588.23529 | N17: 48235.29412 | O17: 57882.35294 | P17: 67529.41176 | Q17: 77176.47059 | R17: 86823.52941 | S17: 96470.58824 | T17: 106117.6471 | U17: 115764.7059 | V17: 125411.7647 | W17: 135058.8235 | X17: 144705.8824 | Y17: 154352.9412 | Z17: 164000 | AA17: 9647.058824 | AB17: 19294.11765 | AC17: 28941.17647 | AD17: 38588.23529 | AE17: 48235.29412
A18: =Costs!A17 -> Wood Fence (B) - Replace | B18: 86823.52941 | C18: 96470.58824 | D18: 106117.6471 | E18: 115764.7059 | F18: 125411.7647 | G18: 135058.8235 | H18: 144705.8824 | I18: 154352.9412 | J18: 164000 | K18: 9647.058824 | L18: 19294.11765 | M18: 28941.17647 | N18: 38588.23529 | O18: 48235.29412 | P18: 57882.35294 | Q18: 67529.41176 | R18: 77176.47059 | S18: 86823.52941 | T18: 96470.58824 | U18: 106117.6471 | V18: 115764.7059 | W18: 125411.7647 | X18: 135058.8235 | Y18: 144705.8824 | Z18: 154352.9412 | AA18: 164000 | AB18: 9647.058824 | AC18: 19294.11765 | AD18: 28941.17647 | AE18: 38588.23529
A19: =Costs!A18 -> Wood Fence (C) - Replace | B19: 77176.47059 | C19: 86823.52941 | D19: 96470.58824 | E19: 106117.6471 | F19: 115764.7059 | G19: 125411.7647 | H19: 135058.8235 | I19: 144705.8824 | J19: 154352.9412 | K19: 164000 | L19: 9647.058824 | M19: 19294.11765 | N19: 28941.17647 | O19: 38588.23529 | P19: 48235.29412 | Q19: 57882.35294 | R19: 67529.41176 | S19: 77176.47059 | T19: 86823.52941 | U19: 96470.58824 | V19: 106117.6471 | W19: 115764.7059 | X19: 125411.7647 | Y19: 135058.8235 | Z19: 144705.8824 | AA19: 154352.9412 | AB19: 164000 | AC19: 9647.058824 | AD19: 19294.11765 | AE19: 28941.17647
A20: =Costs!A19 -> Wood Fence (D) - Replace | B20: 28396.11765 | C20: 32452.70588 | D20: 36509.29412 | E20: 40565.88235 | F20: 44622.47059 | G20: 48679.05882 | H20: 52735.64706 | I20: 56792.23529 | J20: 60848.82353 | K20: 64905.41176 | L20: 68962 | M20: 4056.588235 | N20: 8113.176471 | O20: 12169.76471 | P20: 16226.35294 | Q20: 20282.94118 | R20: 24339.52941 | S20: 28396.11765 | T20: 32452.70588 | U20: 36509.29412 | V20: 40565.88235 | W20: 44622.47059 | X20: 48679.05882 | Y20: 52735.64706 | Z20: 56792.23529 | AA20: 60848.82353 | AB20: 64905.41176 | AC20: 68962 | AD20: 4056.588235 | AE20: 8113.176471
A21: =Costs!A20 -> Brick Columns - Repair | B21: 6753.05286 | C21: 8103.663432 | D21: 9454.274004 | E21: 10804.88458 | F21: 12155.49515 | G21: 13506.10572 | H21: 1350.610572 | I21: 2701.221144 | J21: 4051.831716 | K21: 5402.442288 | L21: 6753.05286 | M21: 8103.663432 | N21: 9454.274004 | O21: 10804.88458 | P21: 12155.49515 | Q21: 13506.10572 | R21: 1350.610572 | S21: 2701.221144 | T21: 4051.831716 | U21: 5402.442288 | V21: 6753.05286 | W21: 8103.663432 | X21: 9454.274004 | Y21: 10804.88458 | Z21: 12155.49515 | AA21: 13506.10572 | AB21: 1350.610572 | AC21: 2701.221144 | AD21: 4051.831716 | AE21: 5402.442288
A22: =Costs!A21 -> Parking Spaces - Restripe | B22: 562.7543903 | C22: 844.1315854 | D22: 1125.508781 | E22: 1406.885976 | F22: 1688.263171 | G22: 1969.640366 | H22: 281.3771951 | I22: 562.7543903 | J22: 844.1315854 | K22: 1125.508781 | L22: 1406.885976 | M22: 1688.263171 | N22: 1969.640366 | O22: 281.3771951 | P22: 562.7543903 | Q22: 844.1315854 | R22: 1125.508781 | S22: 1406.885976 | T22: 1688.263171 | U22: 1969.640366 | V22: 281.3771951 | W22: 562.7543903 | X22: 844.1315854 | Y22: 1125.508781 | Z22: 1406.885976 | AA22: 1688.263171 | AB22: 1969.640366 | AC22: 281.3771951 | AD22: 562.7543903 | AE22: 844.1315854
A23: =Costs!A22 -> Car Park & BB Light Fixtures - Replace | B23: 4243.6 | C23: 282.9066667 | D23: 565.8133333 | E23: 848.72 | F23: 1131.626667 | G23: 1414.533333 | H23: 1697.44 | I23: 1980.346667 | J23: 2263.253333 | K23: 2546.16 | L23: 2829.066667 | M23: 3111.973333 | N23: 3394.88 | O23: 3677.786667 | P23: 3960.693333 | Q23: 4243.6 | R23: 282.9066667 | S23: 565.8133333 | T23: 848.72 | U23: 1131.626667 | V23: 1414.533333 | W23: 1697.44 | X23: 1980.346667 | Y23: 2263.253333 | Z23: 2546.16 | AA23: 2829.066667 | AB23: 3111.973333 | AC23: 3394.88 | AD23: 3677.786667 | AE23: 3960.693333
A24: =Costs!A23 -> Car Park & BB Poles - Refurbish | B24: 4243.6 | C24: 282.9066667 | D24: 565.8133333 | E24: 848.72 | F24: 1131.626667 | G24: 1414.533333 | H24: 1697.44 | I24: 1980.346667 | J24: 2263.253333 | K24: 2546.16 | L24: 2829.066667 | M24: 3111.973333 | N24: 3394.88 | O24: 3677.786667 | P24: 3960.693333 | Q24: 4243.6 | R24: 282.9066667 | S24: 565.8133333 | T24: 848.72 | U24: 1131.626667 | V24: 1414.533333 | W24: 1697.44 | X24: 1980.346667 | Y24: 2263.253333 | Z24: 2546.16 | AA24: 2829.066667 | AB24: 3111.973333 | AC24: 3394.88 | AD24: 3677.786667 | AE24: 3960.693333
A25: =Costs!A24 -> Monument Signs - Refurbish | B25: 5514.993025 | C25: 5908.921098 | D25: 6302.849171 | E25: 6696.777244 | F25: 7090.705318 | G25: 7484.633391 | H25: 7878.561464 | I25: 393.9280732 | J25: 787.8561464 | K25: 1181.78422 | L25: 1575.712293 | M25: 1969.640366 | N25: 2363.568439 | O25: 2757.496512 | P25: 3151.424586 | Q25: 3545.352659 | R25: 3939.280732 | S25: 4333.208805 | T25: 4727.136878 | U25: 5121.064952 | V25: 5514.993025 | W25: 5908.921098 | X25: 6302.849171 | Y25: 6696.777244 | Z25: 7090.705318 | AA25: 7484.633391 | AB25: 7878.561464 | AC25: 393.9280732 | AD25: 787.8561464 | AE25: 1181.78422
A26: =Costs!A25 -> Cul-de-sac Islands (A) - Irrigation | B26: 1519.436893 | C26: 2025.915858 | D26: 2532.394822 | E26: 3038.873787 | F26: 3545.352752 | G26: 4051.831716 | H26: 4558.31068 | I26: 5064.789645 | J26: 5571.268609 | K26: 6077.747574 | L26: 6584.226538 | M26: 7090.705503 | N26: 7597.184468 | O26: 8103.663432 | P26: 8610.142396 | Q26: 9116.621361 | R26: 9623.100325 | S26: 10129.57929 | T26: 506.4789645 | U26: 1012.957929 | V26: 1519.436893 | W26: 2025.915858 | X26: 2532.394822 | Y26: 3038.873787 | Z26: 3545.352752 | AA26: 4051.831716 | AB26: 4558.31068 | AC26: 5064.789645 | AD26: 5571.268609 | AE26: 6077.747574
A27: =Costs!A26 -> Cul-de-sac Islands (B) - Irrigation | B27: 1215.549515 | C27: 1620.732686 | D27: 2025.915858 | E27: 2431.09903 | F27: 2836.282201 | G27: 3241.465373 | H27: 3646.648544 | I27: 4051.831716 | J27: 4457.014888 | K27: 4862.198059 | L27: 5267.381231 | M27: 5672.564402 | N27: 6077.747574 | O27: 6482.930746 | P27: 6888.113917 | Q27: 7293.297089 | R27: 7698.48026 | S27: 8103.663432 | T27: 405.1831716 | U27: 810.3663432 | V27: 1215.549515 | W27: 1620.732686 | X27: 2025.915858 | Y27: 2431.09903 | Z27: 2836.282201 | AA27: 3241.465373 | AB27: 3646.648544 | AC27: 4051.831716 | AD27: 4457.014888 | AE27: 4862.198059
A28: =Costs!A27 -> Cul-de-sac Islands (C) - Irrigation | B28: 2025.915858 | C28: 2431.09903 | D28: 2836.282201 | E28: 3241.465373 | F28: 3646.648544 | G28: 4051.831716 | H28: 4457.014888 | I28: 4862.198059 | J28: 5267.381231 | K28: 5672.564402 | L28: 6077.747574 | M28: 6482.930746 | N28: 6888.113917 | O28: 7293.297089 | P28: 7698.48026 | Q28: 8103.663432 | R28: 405.1831716 | S28: 810.3663432 | T28: 1215.549515 | U28: 1620.732686 | V28: 2025.915858 | W28: 2431.09903 | X28: 2836.282201 | Y28: 3241.465373 | Z28: 3646.648544 | AA28: 4051.831716 | AB28: 4457.014888 | AC28: 4862.198059 | AD28: 5267.381231 | AE28: 5672.564402
A29: =Costs!A30 -> Surveillance System - Replace | B29: 5304.5 | C29: 7956.75 | D29: 10609 | E29: 13261.25 | F29: 15913.5 | G29: 18565.75 | H29: 21218 | I29: 23870.25 | J29: 26522.5 | K29: 2652.25 | L29: 5304.5 | M29: 7956.75 | N29: 10609 | O29: 13261.25 | P29: 15913.5 | Q29: 18565.75 | R29: 21218 | S29: 23870.25 | T29: 26522.5 | U29: 2652.25 | V29: 5304.5 | W29: 7956.75 | X29: 10609 | Y29: 13261.25 | Z29: 15913.5 | AA29: 18565.75 | AB29: 21218 | AC29: 23870.25 | AD29: 26522.5 | AE29: 2652.25
A30: =Costs!A31 -> Interior Lights - Replace | B30: 525.2374447 | C30: 787.856167 | D30: 1050.474889 | E30: 1313.093612 | F30: 1575.712334 | G30: 1838.331056 | H30: 2100.949779 | I30: 2363.568501 | J30: 2626.187223 | K30: 2888.805946 | L30: 3151.424668 | M30: 3414.04339 | N30: 3676.662113 | O30: 3939.280835 | P30: 262.6187223 | Q30: 525.2374447 | R30: 787.856167 | S30: 1050.474889 | T30: 1313.093612 | U30: 1575.712334 | V30: 1838.331056 | W30: 2100.949779 | X30: 2363.568501 | Y30: 2626.187223 | Z30: 2888.805946 | AA30: 3151.424668 | AB30: 3414.04339 | AC30: 3676.662113 | AD30: 3939.280835 | AE30: 262.6187223
A31: =Costs!A32 -> Hallway Flooring - Replace | B31: 459.7233333 | C31: 689.585 | D31: 919.4466667 | E31: 1149.308333 | F31: 1379.17 | G31: 1609.031667 | H31: 1838.893333 | I31: 2068.755 | J31: 2298.616667 | K31: 2528.478333 | L31: 2758.34 | M31: 2988.201667 | N31: 3218.063333 | O31: 3447.925 | P31: 229.8616667 | Q31: 459.7233333 | R31: 689.585 | S31: 919.4466667 | T31: 1149.308333 | U31: 1379.17 | V31: 1609.031667 | W31: 1838.893333 | X31: 2068.755 | Y31: 2298.616667 | Z31: 2528.478333 | AA31: 2758.34 | AB31: 2988.201667 | AC31: 3218.063333 | AD31: 3447.925 | AE31: 229.8616667
A32: =Costs!A33 -> Indoor Carpet - Replace | B32: 1418.139432 | C32: 2127.209148 | D32: 2836.278864 | E32: 3545.34858 | F32: 4254.418296 | G32: 4963.488012 | H32: 5672.557728 | I32: 6381.627444 | J32: 7090.69716 | K32: 709.069716 | L32: 1418.139432 | M32: 2127.209148 | N32: 2836.278864 | O32: 3545.34858 | P32: 4254.418296 | Q32: 4963.488012 | R32: 5672.557728 | S32: 6381.627444 | T32: 7090.69716 | U32: 709.069716 | V32: 1418.139432 | W32: 2127.209148 | X32: 2836.278864 | Y32: 3545.34858 | Z32: 4254.418296 | AA32: 4963.488012 | AB32: 5672.557728 | AC32: 6381.627444 | AD32: 7090.69716 | AE32: 709.069716
A33: =Costs!A34 -> Utility Doors - Partial Replace | B33: 3038.873787 | C33: 3376.52643 | D33: 337.652643 | E33: 675.305286 | F33: 1012.957929 | G33: 1350.610572 | H33: 1688.263215 | I33: 2025.915858 | J33: 2363.568501 | K33: 2701.221144 | L33: 3038.873787 | M33: 3376.52643 | N33: 337.652643 | O33: 675.305286 | P33: 1012.957929 | Q33: 1350.610572 | R33: 1688.263215 | S33: 2025.915858 | T33: 2363.568501 | U33: 2701.221144 | V33: 3038.873787 | W33: 3376.52643 | X33: 337.652643 | Y33: 675.305286 | Z33: 1012.957929 | AA33: 1350.610572 | AB33: 1688.263215 | AC33: 2025.915858 | AD33: 2363.568501 | AE33: 2701.221144
A34: =Costs!A35 -> Pool Gates - Repair/Replace | B34: 1238.059767 | C34: 1350.610654 | D34: 1463.161542 | E34: 1575.71243 | F34: 1688.263318 | G34: 112.5508879 | H34: 225.1017757 | I34: 337.6526636 | J34: 450.2035515 | K34: 562.7544393 | L34: 675.3053272 | M34: 787.8562151 | N34: 900.4071029 | O34: 1012.957991 | P34: 1125.508879 | Q34: 1238.059767 | R34: 1350.610654 | S34: 1463.161542 | T34: 1575.71243 | U34: 1688.263318 | V34: 112.5508879 | W34: 225.1017757 | X34: 337.6526636 | Y34: 450.2035515 | Z34: 562.7544393 | AA34: 675.3053272 | AB34: 787.8562151 | AC34: 900.4071029 | AD34: 1012.957991 | AE34: 1125.508879
A35: =Costs!A36 -> Chairs + Chair Trolleys (2021) | B35: 212.18 | C35: 318.27 | D35: 424.36 | E35: 530.45 | F35: 636.54 | G35: 742.63 | H35: 848.72 | I35: 954.81 | J35: 1060.9 | K35: 1166.99 | L35: 1273.08 | M35: 1379.17 | N35: 1485.26 | O35: 1591.35 | P35: 106.09 | Q35: 212.18 | R35: 318.27 | S35: 424.36 | T35: 530.45 | U35: 636.54 | V35: 742.63 | W35: 848.72 | X35: 954.81 | Y35: 1060.9 | Z35: 1166.99 | AA35: 1273.08 | AB35: 1379.17 | AC35: 1485.26 | AD35: 1591.35 | AE35: 106.09
A36: =Costs!A37 -> Tables | B36: 1414.533333 | C36: 1555.986667 | D36: 1697.44 | E36: 1838.893333 | F36: 1980.346667 | G36: 2121.8 | H36: 141.4533333 | I36: 282.9066667 | J36: 424.36 | K36: 565.8133333 | L36: 707.2666667 | M36: 848.72 | N36: 990.1733333 | O36: 1131.626667 | P36: 1273.08 | Q36: 1414.533333 | R36: 1555.986667 | S36: 1697.44 | T36: 1838.893333 | U36: 1980.346667 | V36: 2121.8 | W36: 141.4533333 | X36: 282.9066667 | Y36: 424.36 | Z36: 565.8133333 | AA36: 707.2666667 | AB36: 848.72 | AC36: 990.1733333 | AD36: 1131.626667 | AE36: 1273.08
A37: =Costs!A38 -> Kitchen - Refurbish | B37: 900.407048 | C37: 1350.610572 | D37: 1800.814096 | E37: 2251.01762 | F37: 2701.221144 | G37: 3151.424668 | H37: 3601.628192 | I37: 4051.831716 | J37: 4502.03524 | K37: 4952.238764 | L37: 5402.442288 | M37: 5852.645812 | N37: 6302.849336 | O37: 6753.05286 | P37: 7203.256384 | Q37: 7653.459908 | R37: 8103.663432 | S37: 8553.866956 | T37: 9004.07048 | U37: 450.203524 | V37: 900.407048 | W37: 1350.610572 | X37: 1800.814096 | Y37: 2251.01762 | Z37: 2701.221144 | AA37: 3151.424668 | AB37: 3601.628192 | AC37: 4051.831716 | AD37: 4502.03524 | AE37: 4952.238764
A38: =Costs!A39 -> Restrooms - Refurbish | B38: 9510.549445 | C38: 10242.13017 | D38: 10973.7109 | E38: 11705.29162 | F38: 12436.87235 | G38: 13168.45308 | H38: 13900.0338 | I38: 14631.61453 | J38: 731.5807265 | K38: 1463.161453 | L38: 2194.74218 | M38: 2926.322906 | N38: 3657.903633 | O38: 4389.484359 | P38: 5121.065086 | Q38: 5852.645812 | R38: 6584.226539 | S38: 7315.807265 | T38: 8047.387991 | U38: 8778.968718 | V38: 9510.549445 | W38: 10242.13017 | X38: 10973.7109 | Y38: 11705.29162 | Z38: 12436.87235 | AA38: 13168.45308 | AB38: 13900.0338 | AC38: 14631.61453 | AD38: 731.5807265 | AE38: 1463.161453
A39: =Costs!A40 -> Interior Surfaces - Repaint | B39: 4428 | C39: 4920 | D39: 492 | E39: 984 | F39: 1476 | G39: 1968 | H39: 2460 | I39: 2952 | J39: 3444 | K39: 3936 | L39: 4428 | M39: 4920 | N39: 492 | O39: 984 | P39: 1476 | Q39: 1968 | R39: 2460 | S39: 2952 | T39: 3444 | U39: 3936 | V39: 4428 | W39: 4920 | X39: 492 | Y39: 984 | Z39: 1476 | AA39: 1968 | AB39: 2460 | AC39: 2952 | AD39: 3444 | AE39: 3936
A40: =Costs!A41 -> Building Exteriors - Paint/Repair | B40: 7587.462555 | C40: 8430.51395 | D40: 843.051395 | E40: 1686.10279 | F40: 2529.154185 | G40: 3372.20558 | H40: 4215.256975 | I40: 5058.30837 | J40: 5901.359765 | K40: 6744.41116 | L40: 7587.462555 | M40: 8430.51395 | N40: 843.051395 | O40: 1686.10279 | P40: 2529.154185 | Q40: 3372.20558 | R40: 4215.256975 | S40: 5058.30837 | T40: 5901.359765 | U40: 6744.41116 | V40: 7587.462555 | W40: 8430.51395 | X40: 843.051395 | Y40: 1686.10279 | Z40: 2529.154185 | AA40: 3372.20558 | AB40: 4215.256975 | AC40: 5058.30837 | AD40: 5901.359765 | AE40: 6744.41116
A41: =Costs!A42 -> Windows - Replace | B41: 675.305286 | C41: 844.1316075 | D41: 1012.957929 | E41: 1181.784251 | F41: 1350.610572 | G41: 1519.436893 | H41: 1688.263215 | I41: 1857.089537 | J41: 2025.915858 | K41: 2194.74218 | L41: 2363.568501 | M41: 2532.394822 | N41: 2701.221144 | O41: 2870.047465 | P41: 3038.873787 | Q41: 3207.700109 | R41: 3376.52643 | S41: 3545.352752 | T41: 3714.179073 | U41: 3883.005394 | V41: 4051.831716 | W41: 4220.658037 | X41: 4389.484359 | Y41: 4558.31068 | Z41: 4727.137002 | AA41: 4895.963324 | AB41: 5064.789645 | AC41: 5233.615966 | AD41: 5402.442288 | AE41: 5571.268609
A42: =Costs!A43 -> Fiber Cement Siding - Replace | B42: 16989.70992 | C42: 17697.6145 | D42: 18405.51908 | E42: 19113.42366 | F42: 19821.32824 | G42: 20529.23282 | H42: 21237.1374 | I42: 21945.04198 | J42: 22652.94656 | K42: 23360.85114 | L42: 24068.75572 | M42: 24776.6603 | N42: 25484.56488 | O42: 26192.46946 | P42: 26900.37404 | Q42: 27608.27862 | R42: 28316.1832 | S42: 707.90458 | T42: 1415.80916 | U42: 2123.71374 | V42: 2831.61832 | W42: 3539.5229 | X42: 4247.42748 | Y42: 4955.33206 | Z42: 5663.23664 | AA42: 6371.14122 | AB42: 7079.0458 | AC42: 7786.95038 | AD42: 8494.85496 | AE42: 9202.75954
A43: =Costs!A44 -> Asphalt Shingle Roof - Replace | B43: 10417.69048 | C43: 11219.05128 | D43: 12020.41209 | E43: 12821.7729 | F43: 13623.1337 | G43: 14424.49451 | H43: 15225.85531 | I43: 16027.21612 | J43: 16828.57693 | K43: 17629.93773 | L43: 18431.29854 | M43: 19232.65934 | N43: 20034.02015 | O43: 801.360806 | P43: 1602.721612 | Q43: 2404.082418 | R43: 3205.443224 | S43: 4006.80403 | T43: 4808.164836 | U43: 5609.525642 | V43: 6410.886448 | W43: 7212.247254 | X43: 8013.60806 | Y43: 8814.968866 | Z43: 9616.329672 | AA43: 10417.69048 | AB43: 11219.05128 | AC43: 12020.41209 | AD43: 12821.7729 | AE43: 13623.1337
A44: =Costs!A45 -> Gutters/Downspouts - Replace | B44: 2048.286082 | C44: 2205.84655 | D44: 2363.407018 | E44: 2520.967485 | F44: 2678.527953 | G44: 2836.088421 | H44: 2993.648889 | I44: 3151.209357 | J44: 3308.769825 | K44: 3466.330292 | L44: 3623.89076 | M44: 3781.451228 | N44: 3939.011696 | O44: 157.5604678 | P44: 315.1209357 | Q44: 472.6814035 | R44: 630.2418714 | S44: 787.8023392 | T44: 945.362807 | U44: 1102.923275 | V44: 1260.483743 | W44: 1418.044211 | X44: 1575.604678 | Y44: 1733.165146 | Z44: 1890.725614 | AA44: 2048.286082 | AB44: 2205.84655 | AC44: 2363.407018 | AD44: 2520.967485 | AE44: 2678.527953
A45: =Costs!A48 -> Shade Awnings - Replace Screens | B45: 1015.91784 | C45: 1523.87676 | D45: 2031.83568 | E45: 2539.7946 | F45: 3047.75352 | G45: 3555.71244 | H45: 4063.67136 | I45: 4571.63028 | J45: 5079.5892 | K45: 507.95892 | L45: 1015.91784 | M45: 1523.87676 | N45: 2031.83568 | O45: 2539.7946 | P45: 3047.75352 | Q45: 3555.71244 | R45: 4063.67136 | S45: 4571.63028 | T45: 5079.5892 | U45: 507.95892 | V45: 1015.91784 | W45: 1523.87676 | X45: 2031.83568 | Y45: 2539.7946 | Z45: 3047.75352 | AA45: 3555.71244 | AB45: 4063.67136 | AC45: 4571.63028 | AD45: 5079.5892 | AE45: 507.95892
A46: =Costs!A49 -> Play Equipment - Replace | B46: 43769.78706 | C46: 46896.20042 | D46: 50022.61378 | E46: 53149.02714 | F46: 56275.4405 | G46: 3126.413361 | H46: 6252.826722 | I46: 9379.240083 | J46: 12505.65344 | K46: 15632.06681 | L46: 18758.48017 | M46: 21884.89353 | N46: 25011.30689 | O46: 28137.72025 | P46: 31264.13361 | Q46: 34390.54697 | R46: 37516.96033 | S46: 40643.37369 | T46: 43769.78706 | U46: 46896.20042 | V46: 50022.61378 | W46: 53149.02714 | X46: 56275.4405 | Y46: 3126.413361 | Z46: 6252.826722 | AA46: 9379.240083 | AB46: 12505.65344 | AC46: 15632.06681 | AD46: 18758.48017 | AE46: 21884.89353
A47: =Costs!A50 -> Playground Awnings - Replace Screens | B47: 4091.864273 | C47: 5455.81903 | D47: 6819.773788 | E47: 8183.728546 | F47: 9547.683303 | G47: 10911.63806 | H47: 12275.59282 | I47: 13639.54758 | J47: 1363.954758 | K47: 2727.909515 | L47: 4091.864273 | M47: 5455.81903 | N47: 6819.773788 | O47: 8183.728546 | P47: 9547.683303 | Q47: 10911.63806 | R47: 12275.59282 | S47: 13639.54758 | T47: 1363.954758 | U47: 2727.909515 | V47: 4091.864273 | W47: 5455.81903 | X47: 6819.773788 | Y47: 8183.728546 | Z47: 9547.683303 | AA47: 10911.63806 | AB47: 12275.59282 | AC47: 13639.54758 | AD47: 1363.954758 | AE47: 2727.909515
A48: =Costs!A51 -> Park Furniture - Replace (13 items) | B48: 0 | C48: 500 | D48: 1000 | E48: 1500 | F48: 2000 | G48: 2500 | H48: 3000 | I48: 3500 | J48: 4000 | K48: 4500 | L48: 5000 | M48: 500 | N48: 1000 | O48: 1500 | P48: 2000 | Q48: 2500 | R48: 3000 | S48: 3500 | T48: 4000 | U48: 4500 | V48: 5000 | W48: 500 | X48: 1000 | Y48: 1500 | Z48: 2000 | AA48: 2500 | AB48: 3000 | AC48: 3500 | AD48: 4000 | AE48: 4500
A49: =Costs!A52 -> Drinking Fountains - Replace | B49: 1913.364977 | C49: 2025.915858 | D49: 2138.466739 | E49: 2251.01762 | F49: 112.550881 | G49: 225.101762 | H49: 337.652643 | I49: 450.203524 | J49: 562.754405 | K49: 675.305286 | L49: 787.856167 | M49: 900.407048 | N49: 1012.957929 | O49: 1125.50881 | P49: 1238.059691 | Q49: 1350.610572 | R49: 1463.161453 | S49: 1575.712334 | T49: 1688.263215 | U49: 1800.814096 | V49: 1913.364977 | W49: 2025.915858 | X49: 2138.466739 | Y49: 2251.01762 | Z49: 112.550881 | AA49: 225.101762 | AB49: 337.652643 | AC49: 450.203524 | AD49: 562.754405 | AE49: 675.305286
A50: =Costs!A53 -> Wood Fence - Replace | B50: 1069.126713 | C50: 1125.39654 | D50: 56.269827 | E50: 112.539654 | F50: 168.809481 | G50: 225.079308 | H50: 281.349135 | I50: 337.618962 | J50: 393.888789 | K50: 450.158616 | L50: 506.428443 | M50: 562.69827 | N50: 618.968097 | O50: 675.237924 | P50: 731.507751 | Q50: 787.777578 | R50: 844.047405 | S50: 900.317232 | T50: 956.587059 | U50: 1012.856886 | V50: 1069.126713 | W50: 1125.39654 | X50: 56.269827 | Y50: 112.539654 | Z50: 168.809481 | AA50: 225.079308 | AB50: 281.349135 | AC50: 337.618962 | AD50: 393.888789 | AE50: 450.158616
A51: =Costs!A54 -> Pool Perimeter Fence - Powder Coat | B51: 17108.44173 | C51: 18534.14521 | D51: 19959.84868 | E51: 21385.55216 | F51: 1425.703477 | G51: 2851.406955 | H51: 4277.110432 | I51: 5702.813909 | J51: 7128.517387 | K51: 8554.220864 | L51: 9979.924341 | M51: 11405.62782 | N51: 12831.3313 | O51: 14257.03477 | P51: 15682.73825 | Q51: 17108.44173 | R51: 18534.14521 | S51: 19959.84868 | T51: 21385.55216 | U51: 1425.703477 | V51: 2851.406955 | W51: 4277.110432 | X51: 5702.813909 | Y51: 7128.517387 | Z51: 8554.220864 | AA51: 9979.924341 | AB51: 11405.62782 | AC51: 12831.3313 | AD51: 14257.03477 | AE51: 15682.73825
A52: =Costs!A55 -> Pool Deck - Repair/Replace | B52: 64960 | C52: 71456 | D52: 77952 | E52: 84448 | F52: 90944 | G52: 97440 | H52: 6496 | I52: 12992 | J52: 19488 | K52: 25984 | L52: 32480 | M52: 38976 | N52: 45472 | O52: 51968 | P52: 58464 | Q52: 64960 | R52: 71456 | S52: 77952 | T52: 84448 | U52: 90944 | V52: 97440 | W52: 6496 | X52: 12992 | Y52: 19488 | Z52: 25984 | AA52: 32480 | AB52: 38976 | AC52: 45472 | AD52: 51968 | AE52: 58464
A53: =Costs!A56 -> Pool - Replaster | B53: 15458.91814 | C53: 20611.89086 | D53: 25764.86357 | E53: 30917.83628 | F53: 36070.809 | G53: 41223.78171 | H53: 46376.75443 | I53: 51529.72714 | J53: 5152.972714 | K53: 10305.94543 | L53: 15458.91814 | M53: 20611.89086 | N53: 25764.86357 | O53: 30917.83628 | P53: 36070.809 | Q53: 41223.78171 | R53: 46376.75443 | S53: 51529.72714 | T53: 5152.972714 | U53: 10305.94543 | V53: 15458.91814 | W53: 20611.89086 | X53: 25764.86357 | Y53: 30917.83628 | Z53: 36070.809 | AA53: 41223.78171 | AB53: 46376.75443 | AC53: 51529.72714 | AD53: 5152.972714 | AE53: 10305.94543
A54: =Costs!A57 -> Kiddie Pool - Replaster | B54: 1857.089537 | C54: 2228.507444 | D54: 2599.925351 | E54: 2971.343258 | F54: 3342.761166 | G54: 3714.179073 | H54: 371.4179073 | I54: 742.8358146 | J54: 1114.253722 | K54: 1485.671629 | L54: 1857.089537 | M54: 2228.507444 | N54: 2599.925351 | O54: 2971.343258 | P54: 3342.761166 | Q54: 3714.179073 | R54: 371.4179073 | S54: 742.8358146 | T54: 1114.253722 | U54: 1485.671629 | V54: 1857.089537 | W54: 2228.507444 | X54: 2599.925351 | Y54: 2971.343258 | Z54: 3342.761166 | AA54: 3714.179073 | AB54: 371.4179073 | AC54: 742.8358146 | AD54: 1114.253722 | AE54: 1485.671629
A55: =Costs!A58 -> Pool Filter (2016) - Replace | B55: 690.3120976 | C55: 776.6011098 | D55: 862.890122 | E55: 949.1791342 | F55: 1035.468146 | G55: 1121.757159 | H55: 1208.046171 | I55: 1294.335183 | J55: 86.2890122 | K55: 172.5780244 | L55: 258.8670366 | M55: 345.1560488 | N55: 431.445061 | O55: 517.7340732 | P55: 604.0230854 | Q55: 690.3120976 | R55: 776.6011098 | S55: 862.890122 | T55: 949.1791342 | U55: 1035.468146 | V55: 1121.757159 | W55: 1208.046171 | X55: 1294.335183 | Y55: 86.2890122 | Z55: 172.5780244 | AA55: 258.8670366 | AB55: 345.1560488 | AC55: 431.445061 | AD55: 517.7340732 | AE55: 604.0230854
A56: =Costs!A59 -> Pool Filters (Old) - Replace | B56: 4727.137002 | C56: 5064.789645 | D56: 337.652643 | E56: 675.305286 | F56: 1012.957929 | G56: 1350.610572 | H56: 1688.263215 | I56: 2025.915858 | J56: 2363.568501 | K56: 2701.221144 | L56: 3038.873787 | M56: 3376.52643 | N56: 3714.179073 | O56: 4051.831716 | P56: 4389.484359 | Q56: 4727.137002 | R56: 5064.789645 | S56: 337.652643 | T56: 675.305286 | U56: 1012.957929 | V56: 1350.610572 | W56: 1688.263215 | X56: 2025.915858 | Y56: 2363.568501 | Z56: 2701.221144 | AA56: 3038.873787 | AB56: 3376.52643 | AC56: 3714.179073 | AD56: 4051.831716 | AE56: 4389.484359
A57: =Costs!A60 -> Sand Filters - Replace Media | B57: 1519.436739 | C57: 2025.915652 | D57: 506.478913 | E57: 1012.957826 | F57: 1519.436739 | G57: 2025.915652 | H57: 506.478913 | I57: 1012.957826 | J57: 1519.436739 | K57: 2025.915652 | L57: 506.478913 | M57: 1012.957826 | N57: 1519.436739 | O57: 2025.915652 | P57: 506.478913 | Q57: 1012.957826 | R57: 1519.436739 | S57: 2025.915652 | T57: 506.478913 | U57: 1012.957826 | V57: 1519.436739 | W57: 2025.915652 | X57: 506.478913 | Y57: 1012.957826 | Z57: 1519.436739 | AA57: 2025.915652 | AB57: 506.478913 | AC57: 1012.957826 | AD57: 1519.436739 | AE57: 2025.915652
A58: =Costs!A61 -> Pool Pumps - Replace | B58: 2025.915858 | C58: 2701.221144 | D58: 3376.52643 | E58: 675.305286 | F58: 1350.610572 | G58: 2025.915858 | H58: 2701.221144 | I58: 3376.52643 | J58: 675.305286 | K58: 1350.610572 | L58: 2025.915858 | M58: 2701.221144 | N58: 3376.52643 | O58: 675.305286 | P58: 1350.610572 | Q58: 2025.915858 | R58: 2701.221144 | S58: 3376.52643 | T58: 675.305286 | U58: 1350.610572 | V58: 2025.915858 | W58: 2701.221144 | X58: 3376.52643 | Y58: 675.305286 | Z58: 1350.610572 | AA58: 2025.915858 | AB58: 2701.221144 | AC58: 3376.52643 | AD58: 675.305286 | AE58: 1350.610572
A59: =Costs!A62 -> Diving Board - Replace | B59: 2731.8175 | C59: 3642.423333 | D59: 4553.029167 | E59: 5463.635 | F59: 6374.240833 | G59: 7284.846667 | H59: 8195.4525 | I59: 9106.058333 | J59: 10016.66417 | K59: 10927.27 | L59: 11837.87583 | M59: 12748.48167 | N59: 13659.0875 | O59: 910.6058333 | P59: 1821.211667 | Q59: 2731.8175 | R59: 3642.423333 | S59: 4553.029167 | T59: 5463.635 | U59: 6374.240833 | V59: 7284.846667 | W59: 8195.4525 | X59: 9106.058333 | Y59: 10016.66417 | Z59: 10927.27 | AA59: 11837.87583 | AB59: 12748.48167 | AC59: 13659.0875 | AD59: 910.6058333 | AE59: 1821.211667
A60: =Costs!A63 -> Lifeguard Stands - Replace | B60: 0 | C60: 800 | D60: 1600 | E60: 2400 | F60: 3200 | G60: 4000 | H60: 4800 | I60: 5600 | J60: 6400 | K60: 7200 | L60: 8000 | M60: 8800 | N60: 9600 | O60: 10400 | P60: 11200 | Q60: 12000 | R60: 800 | S60: 1600 | T60: 2400 | U60: 3200 | V60: 4000 | W60: 4800 | X60: 5600 | Y60: 6400 | Z60: 7200 | AA60: 8000 | AB60: 8800 | AC60: 9600 | AD60: 10400 | AE60: 11200
A61: =Costs!A64 -> Swim Lane Dividers - Replace | B61: 2363.568453 | C61: 2532.394771 | D61: 168.8263181 | E61: 337.6526361 | F61: 506.4789542 | G61: 675.3052723 | H61: 844.1315903 | I61: 1012.957908 | J61: 1181.784226 | K61: 1350.610545 | L61: 1519.436863 | M61: 1688.263181 | N61: 1857.089499 | O61: 2025.915817 | P61: 2194.742135 | Q61: 2363.568453 | R61: 2532.394771 | S61: 168.8263181 | T61: 337.6526361 | U61: 506.4789542 | V61: 675.3052723 | W61: 844.1315903 | X61: 1012.957908 | Y61: 1181.784226 | Z61: 1350.610545 | AA61: 1519.436863 | AB61: 1688.263181 | AC61: 1857.089499 | AD61: 2025.915817 | AE61: 2194.742135
A62: =Costs!A65 -> Pool Coping - Replace | B62: 5139.005007 | C62: 5534.313085 | D62: 5929.621162 | E62: 6324.92924 | F62: 6720.237318 | G62: 7115.545395 | H62: 7510.853473 | I62: 7906.16155 | J62: 395.3080775 | K62: 790.616155 | L62: 1185.924233 | M62: 1581.23231 | N62: 1976.540387 | O62: 2371.848465 | P62: 2767.156542 | Q62: 3162.46462 | R62: 3557.772697 | S62: 3953.080775 | T62: 4348.388853 | U62: 4743.69693 | V62: 5139.005007 | W62: 5534.313085 | X62: 5929.621162 | Y62: 6324.92924 | Z62: 6720.237318 | AA62: 7115.545395 | AB62: 7510.853473 | AC62: 7906.16155 | AD62: 395.3080775 | AE62: 790.616155
A63: =Costs!A66 -> Pool Perimeter Fence - Replace | B63: 17858.08946 | C63: 18908.56531 | D63: 19959.04116 | E63: 21009.51701 | F63: 22059.99286 | G63: 23110.46871 | H63: 24160.94457 | I63: 25211.42042 | J63: 26261.89627 | K63: 27312.37212 | L63: 28362.84797 | M63: 29413.32382 | N63: 30463.79967 | O63: 31514.27552 | P63: 1050.475851 | Q63: 2100.951701 | R63: 3151.427552 | S63: 4201.903403 | T63: 5252.379253 | U63: 6302.855104 | V63: 7353.330955 | W63: 8403.806805 | X63: 9454.282656 | Y63: 10504.75851 | Z63: 11555.23436 | AA63: 12605.71021 | AB63: 13656.18606 | AC63: 14706.66191 | AD63: 15757.13776 | AE63: 16807.61361
A64: =Costs!A67 -> Pool Furniture - Replace (66 items) | B64: 13506.10572 | C64: 15757.12334 | D64: 18008.14096 | E64: 2251.01762 | F64: 4502.03524 | G64: 6753.05286 | H64: 9004.07048 | I64: 11255.0881 | J64: 13506.10572 | K64: 15757.12334 | L64: 18008.14096 | M64: 2251.01762 | N64: 4502.03524 | O64: 6753.05286 | P64: 9004.07048 | Q64: 11255.0881 | R64: 13506.10572 | S64: 15757.12334 | T64: 18008.14096 | U64: 2251.01762 | V64: 4502.03524 | W64: 6753.05286 | X64: 9004.07048 | Y64: 11255.0881 | Z64: 13506.10572 | AA64: 15757.12334 | AB64: 18008.14096 | AC64: 2251.01762 | AD64: 4502.03524 | AE64: 6753.05286
A65: =Costs!A68 -> Tennis Courts - Resurface (26,000 GSF) | B65: 7274.742857 | C65: 10912.11429 | D65: 14549.48571 | E65: 18186.85714 | F65: 21824.22857 | G65: 25461.6 | H65: 3637.371429 | I65: 7274.742857 | J65: 10912.11429 | K65: 14549.48571 | L65: 18186.85714 | M65: 21824.22857 | N65: 25461.6 | O65: 3637.371429 | P65: 7274.742857 | Q65: 10912.11429 | R65: 14549.48571 | S65: 18186.85714 | T65: 21824.22857 | U65: 25461.6 | V65: 3637.371429 | W65: 7274.742857 | X65: 10912.11429 | Y65: 14549.48571 | Z65: 18186.85714 | AA65: 21824.22857 | AB65: 25461.6 | AC65: 3637.371429 | AD65: 7274.742857 | AE65: 10912.11429
A66: =Costs!A69 -> Tennis Court Light Fixtures - Replace | B66: 57797.832 | C66: 3853.1888 | D66: 7706.3776 | E66: 11559.5664 | F66: 15412.7552 | G66: 19265.944 | H66: 23119.1328 | I66: 26972.3216 | J66: 30825.5104 | K66: 34678.6992 | L66: 38531.888 | M66: 42385.0768 | N66: 46238.2656 | O66: 50091.4544 | P66: 53944.6432 | Q66: 57797.832 | R66: 3853.1888 | S66: 7706.3776 | T66: 11559.5664 | U66: 15412.7552 | V66: 19265.944 | W66: 23119.1328 | X66: 26972.3216 | Y66: 30825.5104 | Z66: 34678.6992 | AA66: 38531.888 | AB66: 42385.0768 | AC66: 46238.2656 | AD66: 50091.4544 | AE66: 53944.6432
A67: =Costs!A70 -> Tennis Court Light Poles - Refurbish | B67: 10184.64 | C67: 678.976 | D67: 1357.952 | E67: 2036.928 | F67: 2715.904 | G67: 3394.88 | H67: 4073.856 | I67: 4752.832 | J67: 5431.808 | K67: 6110.784 | L67: 6789.76 | M67: 7468.736 | N67: 8147.712 | O67: 8826.688 | P67: 9505.664 | Q67: 10184.64 | R67: 678.976 | S67: 1357.952 | T67: 2036.928 | U67: 2715.904 | V67: 3394.88 | W67: 4073.856 | X67: 4752.832 | Y67: 5431.808 | Z67: 6110.784 | AA67: 6789.76 | AB67: 7468.736 | AC67: 8147.712 | AD67: 8826.688 | AE67: 9505.664
A68: =Costs!A71 -> Tennis Chain Link Fence - Replace | B68: 15477.0066 | C68: 16508.80704 | D68: 17540.60748 | E68: 18572.40792 | F68: 19604.20836 | G68: 20636.0088 | H68: 21667.80924 | I68: 22699.60968 | J68: 23731.41012 | K68: 24763.21056 | L68: 25795.011 | M68: 26826.81144 | N68: 27858.61188 | O68: 28890.41232 | P68: 29922.21276 | Q68: 30954.0132 | R68: 1031.80044 | S68: 2063.60088 | T68: 3095.40132 | U68: 4127.20176 | V68: 5159.0022 | W68: 6190.80264 | X68: 7222.60308 | Y68: 8254.40352 | Z68: 9286.20396 | AA68: 10318.0044 | AB68: 11349.80484 | AC68: 12381.60528 | AD68: 13413.40572 | AE68: 14445.20616
A69: =Costs!A72 -> Basketball Court - Replace | B69: 28800 | C69: 29760 | D69: 30720 | E69: 31680 | F69: 32640 | G69: 33600 | H69: 34560 | I69: 35520 | J69: 36480 | K69: 37440 | L69: 38400 | M69: 960 | N69: 1920 | O69: 2880 | P69: 3840 | Q69: 4800 | R69: 5760 | S69: 6720 | T69: 7680 | U69: 8640 | V69: 9600 | W69: 10560 | X69: 11520 | Y69: 12480 | Z69: 13440 | AA69: 14400 | AB69: 15360 | AC69: 16320 | AD69: 17280 | AE69: 18240
A70: =Costs!A73 -> Basketball Hoop - Replace | B70: 0 | C70: 120 | D70: 240 | E70: 360 | F70: 480 | G70: 600 | H70: 720 | I70: 840 | J70: 960 | K70: 1080 | L70: 1200 | M70: 120 | N70: 240 | O70: 360 | P70: 480 | Q70: 600 | R70: 720 | S70: 840 | T70: 960 | U70: 1080 | V70: 1200 | W70: 120 | X70: 240 | Y70: 360 | Z70: 480 | AA70: 600 | AB70: 720 | AC70: 840 | AD70: 960 | AE70: 1080
A71: =Costs!A76 -> HVAC Unit (A) 4Ton- Replace | B71: 1950.881937 | C71: 2438.602422 | D71: 2926.322906 | E71: 3414.04339 | F71: 3901.763875 | G71: 4389.484359 | H71: 4877.204843 | I71: 5364.925328 | J71: 5852.645812 | K71: 6340.366296 | L71: 6828.086781 | M71: 7315.807265 | N71: 487.7204843 | O71: 975.4409687 | P71: 1463.161453 | Q71: 1950.881937 | R71: 2438.602422 | S71: 2926.322906 | T71: 3414.04339 | U71: 3901.763875 | V71: 4389.484359 | W71: 4877.204843 | X71: 5364.925328 | Y71: 5852.645812 | Z71: 6340.366296 | AA71: 6828.086781 | AB71: 7315.807265 | AC71: 487.7204843 | AD71: 975.4409687 | AE71: 1463.161453
A72: =Costs!A77 -> HVAC Unit (B) 4Ton- Replace | B72: 1950.881937 | C72: 2438.602422 | D72: 2926.322906 | E72: 3414.04339 | F72: 3901.763875 | G72: 4389.484359 | H72: 4877.204843 | I72: 5364.925328 | J72: 5852.645812 | K72: 6340.366296 | L72: 6828.086781 | M72: 7315.807265 | N72: 487.7204843 | O72: 975.4409687 | P72: 1463.161453 | Q72: 1950.881937 | R72: 2438.602422 | S72: 2926.322906 | T72: 3414.04339 | U72: 3901.763875 | V72: 4389.484359 | W72: 4877.204843 | X72: 5364.925328 | Y72: 5852.645812 | Z72: 6340.366296 | AA72: 6828.086781 | AB72: 7315.807265 | AC72: 487.7204843 | AD72: 975.4409687 | AE72: 1463.161453
A73: =Costs!A78 -> HVAC Unit (C) 3Ton- Replace | B73: 2566.666667 | C73: 2933.333333 | D73: 3300 | E73: 3666.666667 | F73: 4033.333333 | G73: 4400 | H73: 4766.666667 | I73: 5133.333333 | J73: 5500 | K73: 366.6666667 | L73: 733.3333333 | M73: 1100 | N73: 1466.666667 | O73: 1833.333333 | P73: 2200 | Q73: 2566.666667 | R73: 2933.333333 | S73: 3300 | T73: 3666.666667 | U73: 4033.333333 | V73: 4400 | W73: 4766.666667 | X73: 5133.333333 | Y73: 5500 | Z73: 366.6666667 | AA73: 733.3333333 | AB73: 1100 | AC73: 1466.666667 | AD73: 1833.333333 | AE73: 2200
A74: Total FFB | B74: =SUM(B14:B73) -> 795322.8164 | C74: 814342.1641 | D74: 882355.6468 | E74: 956459.9991 | F74: 1028312.449 | G74: 1065837.765 | H74: 873487.5437 | I74: 961098.0019 | J74: 800209.1092 | K74: 687505.3425 | L74: 616968.4466 | M74: 573687.3253 | N74: 637817.6901 | O74: 664866.8236 | P74: 717837.0963 | Q74: 813326.1159 | R74: 716067.5022 | S74: 775643.1543 | T74: 782327.2144 | U74: 790725.6841 | V74: 857095.2001 | W74: 746022.4198 | X74: 821633.0869 | Y74: 856175.8045 | Z74: 943913.8066 | AA74: 875402.8262 | AB74: 739645.6455 | AC74: 603185.1078 | AD74: 524969.4628 | AE74: 572787.1403
A75: Total FFB Adjusted for Inflation | B75: =B74*(1+'Cash Flow'!$B$8)^B13 -> 795322.8164 | C75: =C74*(1+'Cash Flow'!$B$8)^C13 -> 838772.429 | D75: =D74*(1+'Cash Flow'!$B$8)^D13 -> 936091.1057 | E75: =E74*(1+'Cash Flow'!$B$8)^E13 -> 1045149.665 | F75: =F74*(1+'Cash Flow'!$B$8)^F13 -> 1157374.721 | G75: =G74*(1+'Cash Flow'!$B$8)^G13 -> 1235598.088 | H75: =H74*(1+'Cash Flow'!$B$8)^H13 -> 1042989.808 | I75: =I74*(1+'Cash Flow'!$B$8)^I13 -> 1182029.315 | J75: =J74*(1+'Cash Flow'!$B$8)^J13 -> 1013680.958 | K75: =K74*(1+'Cash Flow'!$B$8)^K13 -> 897038.5347 | L75: =L74*(1+'Cash Flow'!$B$8)^L13 -> 829154.0009 | M75: =M74*(1+'Cash Flow'!$B$8)^M13 -> 794117.4269 | N75: =N74*(1+'Cash Flow'!$B$8)^N13 -> 909375.5154 | O75: =O74*(1+'Cash Flow'!$B$8)^O13 -> 976379.3454 | P75: =P74*(1+'Cash Flow'!$B$8)^P13 -> 1085793.016 | Q75: =Q74*(1+'Cash Flow'!$B$8)^Q13 -> 1267135.588 | R75: =R74*(1+'Cash Flow'!$B$8)^R13 -> 1149078.132 | S75: =S74*(1+'Cash Flow'!$B$8)^S13 -> 1282019.951 | T75: =T74*(1+'Cash Flow'!$B$8)^T13 -> 1331859.715 | U75: =U74*(1+'Cash Flow'!$B$8)^U13 -> 1386542.273 | V75: =V74*(1+'Cash Flow'!$B$8)^V13 -> 1548009.27 | W75: =W74*(1+'Cash Flow'!$B$8)^W13 -> 1387821.458 | X75: =X74*(1+'Cash Flow'!$B$8)^X13 -> 1574333.959 | Y75: =Y74*(1+'Cash Flow'!$B$8)^Y13 -> 1689737.019 | Z75: =Z74*(1+'Cash Flow'!$B$8)^Z13 -> 1918782.423 | AA75: =AA74*(1+'Cash Flow'!$B$8)^AA13 -> 1832899.117 | AB75: =AB74*(1+'Cash Flow'!$B$8)^AB13 -> 1595113.34 | AC75: =AC74*(1+'Cash Flow'!$B$8)^AC13 -> 1339848.448 | AD75: =AD74*(1+'Cash Flow'!$B$8)^AD13 -> 1201092.163 | AE75: =AE74*(1+'Cash Flow'!$B$8)^AE13 -> 1349810.417
A77: Reserve Fund Strength | B77: ='Cash Flow'!B78/'FFB Spread'!B75 -> 0.9129060364 | C77: ='Cash Flow'!C78/'FFB Spread'!C75 -> 0.9379299658 | D77: ='Cash Flow'!D78/'FFB Spread'!D75 -> 0.9616474486 | E77: ='Cash Flow'!E78/'FFB Spread'!E75 -> 0.9806577226 | F77: ='Cash Flow'!F78/'FFB Spread'!F75 -> 0.995733144 | G77: ='Cash Flow'!G78/'FFB Spread'!G75 -> 1.008417096 | H77: ='Cash Flow'!H78/'FFB Spread'!H75 -> 1.027917813 | I77: ='Cash Flow'!I78/'FFB Spread'!I75 -> 1.035851901 | J77: ='Cash Flow'!J78/'FFB Spread'!J75 -> 1.058609908 | K77: ='Cash Flow'!K78/'FFB Spread'!K75 -> 1.083445535 | L77: ='Cash Flow'!L78/'FFB Spread'!L75 -> 1.106948527 | M77: ='Cash Flow'!M78/'FFB Spread'!M75 -> 1.127227248 | N77: ='Cash Flow'!N78/'FFB Spread'!N75 -> 1.12112693 | O77: ='Cash Flow'!O78/'FFB Spread'!O75 -> 1.121708314 | P77: ='Cash Flow'!P78/'FFB Spread'!P75 -> 1.115724208 | Q77: ='Cash Flow'!Q78/'FFB Spread'!Q75 -> 1.102659775 | R77: ='Cash Flow'!R78/'FFB Spread'!R75 -> 1.119545477 | S77: ='Cash Flow'!S78/'FFB Spread'!S75 -> 1.108693099 | T77: ='Cash Flow'!T78/'FFB Spread'!T75 -> 1.105705274 | U77: ='Cash Flow'!U78/'FFB Spread'!U75 -> 1.101143832 | V77: ='Cash Flow'!V78/'FFB Spread'!V75 -> 1.087918944 | W77: ='Cash Flow'!W78/'FFB Spread'!W75 -> 1.096841366 | X77: ='Cash Flow'!X78/'FFB Spread'!X75 -> 1.079551266 | Y77: ='Cash Flow'!Y78/'FFB Spread'!Y75 -> 1.067813462 | Z77: ='Cash Flow'!Z78/'FFB Spread'!Z75 -> 1.051892881 | AA77: ='Cash Flow'!AA78/'FFB Spread'!AA75 -> 1.04702876 | AB77: ='Cash Flow'!AB78/'FFB Spread'!AB75 -> 1.045010037 | AC77: ='Cash Flow'!AC78/'FFB Spread'!AC75 -> 1.040416204 | AD77: ='Cash Flow'!AD78/'FFB Spread'!AD75 -> 1.025895571 | AE77: ='Cash Flow'!AE78/'FFB Spread'!AE75 -> 1
